Cogmind - Beta 11 @@@ ROGUE MODE // 2022.03.21 @ 21:23:31 Player: drchaos820 Result: Destroyed by S-27 Virus with Autogun Performance ------------- Evolutions (3) 1500 Regions Visited (7) 1400 Robots Destroyed (51) 255 Value Destroyed (1857) 1857 Prototype IDs (0) 0 Alien Tech Used (0) 0 Bonus (2) 2 TOTAL SCORE: 5014 Bonus ------- High Alert Combat Kills 2 Cogmind --------- Core Integrity 0/700 Matter 61/300 Energy 100/100 System Corruption 5% Temperature Cool (0) Movement Core (50) Location -7/Factory Parts ------- > --- POWER (1) -------- (None) > --- PROPULSION (5) --- (None) > --- UTILITY (5) ------ Improved Signal Interpreter Improved Signal Interpreter Power Shielding Power Shielding > --- WEAPON (2) ------- (None) > --- INVENTORY (5) ---- Nuclear Core Medium Treads Hardened Heavy Armor Plating Assault Cannon Peak State ------------ > --- POWER ------------ Light Ion Engine > --- PROPULSION ------- Improved Treads Aluminum Leg Aluminum Leg Carbon-fiber Leg Improved Carbon-fiber Leg > --- UTILITY ---------- Huge Storage Unit Improved Signal Interpreter Improved Signal Interpreter Power Shielding Power Shielding > --- WEAPON ----------- Heavy Assault Rifle Gauss Cannon > --- INVENTORY -------- Nuclear Core Light Nuclear Core Micro Nuclear Core Medium Treads Improved Heat Sink Medium Storage Unit Huge Storage Unit Visual Processing Unit Improved Signal Interpreter Improved Terrain Scanner Seismic Detector Hardened Heavy Armor Plating Assault Cannon Rocket Launcher Mining Laser [Rating: 31] Favorites ----------- Power Improved Ion Engine Engine Improved Ion Engine Power Core Nuclear Core Propulsion Improved Treads Treads Improved Treads Leg Aluminum Leg Utility Power Shielding Device Heat Sink Storage Huge Storage Unit Processor Improved Signal Interpreter Protection Power Shielding Weapon Heavy Assault Rifle Energy Gun EM Shotgun Ballistic Gun Heavy Assault Rifle Ballistic Cannon Assault Cannon Launcher Grenade Launcher Special Weapon Mining Laser Build | -11 -10 -10 -9 -8 -7 -7 -7 ------- Run | Scr Mat Min Mat Mat Fac Was Fac Slots Evolved 6 | . . . 2 2 2 . . Power . | . . . . . . . . Propulsion 3 | . . . . 2 1 . . Utility 3 | . . . 2 . 1 . . Weapon . | . . . . . . . . Parts Attached 52 | 5 3 . 23 3 17 . 1 Power 5 | 1 . . 2 . 1 . 1 Engine 4 | 1 . . 2 . 1 . . Core 1 | . . . . . . . 1 Reactor . | . . . . . . . . Propulsion 17 | 2 . . 6 2 7 . . Treads 7 | . . . 2 2 3 . . Leg 10 | 2 . . 4 . 4 . . Wheel . | . . . . . . . . Hover . | . . . . . . . . Flight . | . . . . . . . . Utility 11 | . 1 . 8 . 2 . . Device 2 | . . . 2 . . . . Storage 5 | . 1 . 4 . . . . Processor 2 | . . . . . 2 . . Hackware . | . . . . . . . . Protection 2 | . . . 2 . . . . Artifact . | . . . . . . . . Weapon 19 | 2 2 . 7 1 7 . . Energy Gun 4 | . . . 4 . . . . Energy Cannon . | . . . . . . . . Ballistic Gun 8 | 2 . . 3 1 2 . . Ballistic Cannon 3 | . . . . . 3 . . Launcher 3 | . 1 . . . 2 . . Special Weapon 1 | . 1 . . . . . . Impact Weapon . | . . . . . . . . Slashing Weapon . | . . . . . . . . Piercing Weapon . | . . . . . . . . Special Melee Weapon . | . . . . . . . . Unidentified Prototypes . | . . . . . . . . Parts Lost 25 | . 3 . 3 . 13 5 1 Power 4 | . 1 . . . 1 1 1 Propulsion 7 | . . . . . 6 1 . Utility 3 | . . . 1 . 1 1 . Weapon 11 | . 2 . 2 . 5 2 . Highest Loss Streak 7 | . 3 . 2 . 7 5 1 To Critical Strikes . | . . . . . . . . Average Slot Usage (%) 88 | . 77 57 97 100 85 66 37 Engine 8 | . 12 . 10 9 6 3 . Treads 16 | . . . 15 36 19 2 . Leg 9 | . 28 28 6 . 9 17 . Device 6 | . . . 10 9 2 . . Storage 8 | . 9 14 11 9 7 4 . Processor 3 | . . . . . 9 15 15 Protection 15 | . . . 20 18 15 15 15 Energy Gun 5 | . . . 10 9 1 . . Ballistic Gun 9 | . 23 . 10 9 4 . . Ballistic Cannon 1 | . . . . . 4 3 . Naked Turns . | . . . . . . . . Heaviest Build 98 | 6 11 8 96 96 98 96 9 Greatest Support 112 | 20 20 20 46 92 112 53 3 Greatest Overweight (x) 3 | . . . 3 1 2 2 2 Average Overweight (x) . | . . . 1 1 . . 1 Largest Inventory Capacity 25 | 5 8 8 25 25 25 25 5 Average Capacity 19 | 5 7 8 20 25 25 18 5 Most Carried 25 | 1 8 8 20 25 22 17 5 Average Carried 14 | . 4 8 12 21 18 12 5 Final Capacity 25 | 5 8 8 25 25 25 5 5 Final Carried 23 | 1 8 8 20 23 17 5 5 Class Distribution -------------------- 88% | Mutant 11% | Scavenger-Mutant Dominant Class ---------------- Mutant | -10/Materials Mutant | -10/Mines Mutant | -9/Materials Mutant | -8/Materials Mutant | -7/Factory Mutant | -7/Waste Mutant | -7/Factory Resources | -11 -10 -10 -9 -8 -7 -7 -7 ----------- Run | Scr Mat Min Mat Mat Fac Was Fac Matter Collected 1144 | 258 62 . 437 48 339 . . Remotely . | . . . . . . . . Salvage Created 1834 | 35 98 27 857 155 662 . . Parts 110 | 2 9 5 54 7 33 . . Haulers Intercepted 1 | . . . 1 . . . . Recyclers Shooed . | . . . . . . . . Parts Field Recycled . | . . . . . . . . Retrieved Matter . | . . . . . . . . Parts Self-Destructed . | . . . . . . . . Prevented . | . . . . . . . . Kills | -11 -10 -10 -9 -8 -7 -7 -7 ------- Run | Scr Mat Min Mat Mat Fac Was Fac Combat Hostiles Destroyed 43 | 1 2 3 19 3 15 . . Guns 27 | 1 2 . 18 2 4 . . Cannons 3 | . . . . . 3 . . AOE 12 | . . 3 1 1 7 . . Classes Destroyed 10 | 1 1 1 2 . 5 . . Worker 2 | . . . . . 2 . . Hauler 1 | . . . 1 . . . . Recycler 1 | . . . . . 1 . . Operator 1 | . . . . . 1 . . Watcher 3 | . 1 . 2 . . . . Swarmer 7 | . . 3 4 . . . . Grunt 25 | 1 2 . 12 1 9 . . Duelist 1 | . . . . . 1 . . Sentry 7 | . . . 3 2 2 . . Programmer 3 | . . . . . 3 . . Best Kill Streak 5 | 1 2 2 5 1 5 . . Combat Bots Only 5 | 1 2 2 5 1 5 . . Max Kills in Single Turn 5 | 1 1 2 1 1 5 . . Gunslinging . | . . . . . . . . Exploded 5 | . . 2 1 1 5 . . Melee . | . . . . . . . . Uniques/NPCs Destroyed . | . . . . . . . . Combat | -11 -10 -10 -9 -8 -7 -7 -7 -------- Run | Scr Mat Min Mat Mat Fac Was Fac Damage Taken 4234 | 22 642 35 641 153 2101 232 408 Core 1063 | . 194 . 120 45 269 155 280 Absorbed by Shields . | . . . . . . . . Redirected to Shielding 66 | . . . 7 . 26 . 33 Core Remaining (%) 70 | 100 . 22 70 91 . . . Volleys Fired 158 | 2 18 3 63 6 63 3 . Largest 2 | 2 2 1 2 2 2 2 . Hottest 120 | 40 120 30 85 68 92 81 . Shots Fired 285 | 4 34 3 114 12 112 6 . Gun 225 | 4 31 . 109 12 69 . . Cannon 38 | . . . . . 35 3 . Launcher 20 | . 1 3 5 . 8 3 . Special 2 | . 2 . . . . . . Kinetic 190 | 4 31 . 56 6 90 3 . Thermal 38 | . 2 . 36 . . . . Explosive 20 | . 1 3 5 . 8 3 . Electromagnetic 37 | . . . 17 6 14 . . Robot Hit Streak 19 | 2 3 . 12 8 19 3 . Robot Miss Streak 3 | 1 3 . 3 1 3 1 . Penetration Max . | . . . . . . . . Secondary Targets . | . . . . . . . . Shots Hit Robots 185 | 3 15 . 74 12 77 4 . Core Hits 106 | 2 5 5 42 6 40 2 4 Critical Kills . | . . . . . . . . Critical Parts Destroyed . | . . . . . . . . Critical Strikes 3 | . . . . . 3 . . Blast 3 | . . . . . 3 . . Melee Attacks . | . . . . . . . . Impact . | . . . . . . . . Slashing . | . . . . . . . . Piercing . | . . . . . . . . Sneak Attacks . | . . . . . . . . Combat Hostiles . | . . . . . . . . Follow-up Attacks . | . . . . . . . . Damage Inflicted 4245 | 30 152 121 1121 203 2323 261 34 Guns 2178 | 30 151 . 990 148 859 . . Cannons 645 | . . . . . 614 31 . Explosions 1373 | . 1 121 131 55 835 230 . Melee . | . . . . . . . . Ramming 49 | . . . . . 15 . 34 Kinetic 1917 | 30 151 . 385 71 1249 31 . Thermal 417 | . . . 325 55 37 . . Explosive 1281 | . 1 121 131 . 798 230 . Electromagnetic 581 | . . . 280 77 224 . . Impact . | . . . . . . . . Slashing . | . . . . . . . . Piercing . | . . . . . . . . Highest Corruption 8 | . 8 8 . . 4 4 4 Average Corruption 3 | . 7 8 . . 2 4 4 Corruption Purged . | . . . . . . . . Corruption Blocked . | . . . . . . . . Effects 26 | . 2 3 . . 16 1 4 Message Errors 6 | . 1 1 . . 4 . . Matter Fused 5 | . . . . . 5 . . Heat Flow Errors 3 | . . 1 . . 1 . 1 Energy Discharges 8 | . 1 1 . . 3 1 2 Data Loss (minor) 3 | . . . . . 2 . 1 Alerts 1 | . . . . . 1 . . Overload Shots . | . . . . . . . . Overflow Damage 167 | . . . 13 . 154 . . Projectiles 29 | . . . . . 29 . . Explosions 138 | . . . 13 . 125 . . Melee . | . . . . . . . . Knockbacks 4 | . . . . . 4 . . Impact . | . . . . . . . . Kinetic 4 | . . . . . 4 . . Secondary . | . . . . . . . . Self-Inflicted Damage 687 | . 48 35 26 31 533 . 14 Shots 13 | . 1 2 1 1 8 . . Rammed 13 | . . . . . . . 13 Targets Rammed 16 | . . . . . 3 . 13 Kicked 3 | . . . . . 3 . . Crushed . | . . . . . . . . Highest Temperature 148 | 6 20 148 49 14 103 . 100 Average Temperature 19 | 6 10 77 16 7 13 . 59 Received Heat Transfer 876 | 12 36 . 204 72 552 . . Siege Activations . | . . . . . . . . Robots Corrupted 1 | . . . . . 1 . . Combat Hostiles 1 | . . . . . 1 . . Parts Fried 2 | . . . . . 2 . . Impact Corruptions . | . . . . . . . . Robots Melted . | . . . . . . . . Combat Hostiles . | . . . . . . . . Parts Melted . | . . . . . . . . Heat Transferred 881 | . . . 781 50 50 . . Parts Sabotaged . | . . . . . . . . Parts Stolen . | . . . . . . . . Parts Stripped . | . . . . . . . . Power Chain Reactions 2 | . . . . 1 1 . . Missiles Intercepted . | . . . . . . . . Alert | -11 -10 -10 -9 -8 -7 -7 -7 ------- Run | Scr Mat Min Mat Mat Fac Was Fac Peak Influence 413 | 20 90 136 413 178 372 112 43 Initial 94 | . 13 . 52 33 . 94 43 Average 159 | 3 57 91 213 75 186 85 42 Maximum Alert Level 2 | . . . 2 . 1 . . Low Security (%) 62 | 100 100 100 42 100 49 100 100 Level 1 37 | . . . 56 . 50 . . Level 2 . | . . . . . . . . Level 3 . | . . . . . . . . Level 4 . | . . . . . . . . Level 5 . | . . . . . . . . High Security . | . . . . . . . . Max Security . | . . . . . . . . Squads Dispatched 8 | . 1 . 1 1 5 . . Investigation 1 | . . . . . 1 . . Extermination 2 | . . . . . 2 . . Reinforcement 5 | . 1 . 1 1 2 . . Assault . | . . . . . . . . Garrison . | . . . . . . . . Intercept . | . . . . . . . . Searches Triggered . | . . . . . . . . Construction Impeded . | . . . . . . . . Haulers Reinforced . | . . . . . . . . Active Scanning Responses . | . . . . . . . . Cargo Convoy Interrupts . | . . . . . . . . Stealth | -11 -10 -10 -9 -8 -7 -7 -7 --------- Run | Scr Mat Min Mat Mat Fac Was Fac Distress Signals 3 | . 1 . 2 . . . . Communications Jammed . | . . . . . . . . Distress Signals . | . . . . . . . . Times Spotted 66 | 1 5 . 28 4 19 6 3 Peak Tracking Total 6 | 1 3 . 4 1 5 6 3 Tactical Retreats 2 | . . . 1 . 1 . . Traps | -11 -10 -10 -9 -8 -7 -7 -7 ------- Run | Scr Mat Min Mat Mat Fac Was Fac Traps Triggered 2 | . . . . . 2 . . Indirectly . | . . . . . . . . Trap Hack Attempts . | . . . . . . . . Triggered . | . . . . . . . . Disarmed . | . . . . . . . . Reprogrammed . | . . . . . . . . Reused . | . . . . . . . . Traps Extracted . | . . . . . . . . Installed . | . . . . . . . . Triggered . | . . . . . . . . Machines | -11 -10 -10 -9 -8 -7 -7 -7 ---------- Run | Scr Mat Min Mat Mat Fac Was Fac Machines Disabled 11 | . . . 1 1 9 . . Max in Single Turn 6 | . . . 1 1 6 . . Machines Sabotaged . | . . . . . . . . Garrisons Compromised . | . . . . . . . . Overloaded Fab Kills . | . . . . . . . . Hacking | -11 -10 -10 -9 -8 -7 -7 -7 --------- Run | Scr Mat Min Mat Mat Fac Was Fac Machines Accessed 6 | . 1 . 3 . 2 . . Terminals 6 | . 1 . 3 . 2 . . Fabricators . | . . . . . . . . Repair Stations . | . . . . . . . . Recycling Units . | . . . . . . . . Scanalyzers . | . . . . . . . . Garrison Access . | . . . . . . . . Total Hacks 13 | . 2 . 7 . 4 . . Successful 3 | . 1 . 1 . 1 . . Failed 10 | . 1 . 6 . 3 . . Catastrophic 4 | . . . 1 . 3 . . Database Lockouts . | . . . . . . . . Manual 8 | . 2 . 6 . . . . Terminals 13 | . 2 . 7 . 4 . . Fabricators . | . . . . . . . . Repair Stations . | . . . . . . . . Recycling Units . | . . . . . . . . Scanalyzers . | . . . . . . . . Garrison Access . | . . . . . . . . Terminal Hacks 3 | . 1 . 1 . 1 . . Record 2 | . 1 . 1 . . . . Security Status 1 | . . . . . 1 . . Fabricator Hacks . | . . . . . . . . Repair Station Hacks . | . . . . . . . . Recycling Unit Hacks . | . . . . . . . . Scanalyzer . | . . . . . . . . Garrison Access Hacks . | . . . . . . . . Unauthorized Hacks . | . . . . . . . . Terminals . | . . . . . . . . Fabricators . | . . . . . . . . Repair Stations . | . . . . . . . . Recycling Units . | . . . . . . . . Scanalyzers . | . . . . . . . . Garrison Access . | . . . . . . . . Data Cores Recovered . | . . . . . . . . Used . | . . . . . . . . Hacking Detections 5 | . 1 . 2 . 2 . . Full Trace Events 1 | . . . . . 1 . . Feedback Events . | . . . . . . . . Feedback Blocked . | . . . . . . . . Robot Schematics Acquired . | . . . . . . . . Robots Built . | . . . . . . . . Authchips . | . . . . . . . . Time . | . . . . . . . . Total Robot Build Rating . | . . . . . . . . Part Schematics Acquired . | . . . . . . . . Parts Built . | . . . . . . . . Authchips . | . . . . . . . . Time . | . . . . . . . . Total Part Build Rating . | . . . . . . . . Parts Repaired . | . . . . . . . . Time . | . . . . . . . . Parts Recycled . | . . . . . . . . Recycled Matter . | . . . . . . . . Retrieved Matter . | . . . . . . . . Retrieved Components . | . . . . . . . . Parts Scanalyzed . | . . . . . . . . Part Schematics Acquired . | . . . . . . . . Parts Damaged . | . . . . . . . . Bothacking | -11 -10 -10 -9 -8 -7 -7 -7 ------------ Run | Scr Mat Min Mat Mat Fac Was Fac Used RIF Installer . | . . . . . . . . Robots Hacked . | . . . . . . . . Non-combat . | . . . . . . . . Combat . | . . . . . . . . Robot Hacks Applied . | . . . . . . . . Relay Couplers Released . | . . . . . . . . Fabnet Peak Effective % . | . . . . . . . . Robots Rewired . | . . . . . . . . Allies Hacked . | . . . . . . . . Hacks Repelled . | . . . . . . . . Allies | -11 -10 -10 -9 -8 -7 -7 -7 -------- Run | Scr Mat Min Mat Mat Fac Was Fac Total Allies . | . . . . . . . . Largest Group . | . . . . . . . . Highest-Rated Group . | . . . . . . . . Highest-Rated Ally . | . . . . . . . . Total Orders . | . . . . . . . . Ally Attacks . | . . . . . . . . Total Damage . | . . . . . . . . Kills . | . . . . . . . . Allies Corrupted . | . . . . . . . . Allies Melted . | . . . . . . . . Intel | -11 -10 -10 -9 -8 -7 -7 -7 ------- Run | Scr Mat Min Mat Mat Fac Was Fac Robot Analysis Total . | . . . . . . . . Derelict Logs Recovered . | . . . . . . . . Drone Launches . | . . . . . . . . Drone Recoveries . | . . . . . . . . Exploration | -11 -10 -10 -9 -8 -7 -7 -7 ------------- Run | Scr Mat Min Mat Mat Fac Was Fac Turns Passed 4394 | 78 409 84 1820 508 1218 105 172 Spaces Moved 1896 | 63 268 51 659 187 472 82 114 Core 174 | 18 . . . . . 42 114 Treads 882 | . . . 401 187 294 . . Legs 840 | 45 268 51 258 . 178 40 . Wheels . | . . . . . . . . Hover . | . . . . . . . . Flight . | . . . . . . . . Fastest Speed 50 | 50 120 120 120 240 160 50 50 Average Speed 194 | 100 120 120 232 240 213 117 136 Slowest Speed 330 | 120 120 120 330 240 320 260 150 Overloaded Moves . | . . . . . . . . Propulsion Burnouts . | . . . . . . . . Robots Hopped . | . . . . . . . . Cave-ins Triggered 2 | . 2 . . . . . . Exploration Rate (%) 27 | 6 34 23 54 16 11 72 4 Regions Visited 7 Branch Regions 1 Pre-discovered Areas . | . . . . . . . . Known Exits Taken . | . . . . . . . . Unknown Exits Taken 5 | 1 1 1 1 1 . . . Scrap Searched . | . . . . . . . . Spaces Dug 10 | . 10 . . . . . . Terrain Destroyed 166 | . 10 29 11 4 92 20 . Melee . | . . . . . . . . Projectile 7 | . 2 . . . 4 1 . AOE 159 | . 8 29 11 4 88 19 . Terrain Rammed . | . . . . . . . . Walls Destroyed . | . . . . . . . . Machines Disabled . | . . . . . . . . Actions | -11 -10 -10 -9 -8 -7 -7 -7 --------- Run | Scr Mat Min Mat Mat Fac Was Fac Total 2317 | 72 319 71 841 237 565 84 128 Wait 141 | 2 23 18 67 28 3 . . Move 1890 | 62 267 50 658 186 472 81 114 Hop . | . . . . . . . . Pick Up 41 | 1 8 . 16 9 7 . . Fast Attach 15 | 5 1 . 7 . 1 . 1 Attach 23 | . 1 . 6 2 14 . . Detach 2 | . . . 2 . . . . Swap 14 | . 1 . 10 1 2 . . Drop 17 | . . . 12 5 . . . Fire 158 | 2 18 3 63 6 63 3 . Melee . | . . . . . . . . Ram 13 | . . . . . . . 13 Kick 3 | . . . . . 3 . . Crush . | . . . . . . . . Escape Stasis . | . . . . . . . . Rewire . | . . . . . . . . Trap . | . . . . . . . . Miscellaneous . | . . . . . . . . Route ------- -11/Scrapyard -10/Materials -10/Mines -9/Materials (discovered 2 exits: [*Mat] / [*Min]) -8/Materials -7/Factory -7/Waste -7/Factory History --------- Turn | Location | Event 3 | -11/Scrapyard | Met Revision 17 58 | -11/Scrapyard | Discovered new exit (range 8) 79 | -11/Scrapyard | Entered Materials 316 | -10/Materials | Build established: Mutant 425 | -10/Materials | Crushed by falling debris 433 | -10/Materials | Crushed by falling debris 433 | -10/Materials | Core integrity fell below 50% 433 | -10/Materials | Discovered new exit (range 9) 464 | -10/Materials | Lost 3 parts (1p2w) 488 | -10/Materials | Entered Mines 529 | -10/Mines | Met a Derelict bent on vengeance 554 | -10/Mines | Discovered new exit (range 16) 572 | -10/Mines | Entered Materials 572 | -9/Materials | Evolved 2 slots: Utility x2 1096 | -9/Materials | Discovered new exit (range 12) 2338 | -9/Materials | Discovered new exit (range 15) 2392 | -9/Materials | Entered another Materials area 2392 | -8/Materials | Evolved 2 slots: Propulsion x2 2869 | -8/Materials | Discovered new exit (range 13) 2900 | -8/Materials | Entered Factory 2900 | -7/Factory | Evolved 2 slots: Propulsion x1, Utility x1 3202 | -7/Factory | Build established: Scavenger-Mutant 3336 | -7/Factory | Lost 7 parts (1p4n1u1w) 3571 | -7/Factory | Build established: Mutant 4118 | -7/Factory | Sucked down chute 4118 | -7/Factory | Entered Waste 4130 | -7/Waste | Spotted C-40 Crusher 4134 | -7/Waste | Spotted C-40 Crusher 4139 | -7/Waste | Spotted C-40 Crusher 4155 | -7/Waste | Crushed by Compactor (1 part destroyed, 2 dropped) 4161 | -7/Waste | Spotted C-40 Crusher 4166 | -7/Waste | Crushed by Compactor (1 part destroyed, 1 dropped) 4167 | -7/Waste | Core integrity fell below 50% 4169 | -7/Waste | Spotted C-40 Crusher 4174 | -7/Waste | Crushed by Compactor (1 part destroyed) 4177 | -7/Waste | Spotted C-40 Crusher 4187 | -7/Waste | Crushed by Compactor (1 part destroyed, 1 dropped) 4217 | -7/Waste | Discovered new exit (range 12) 4223 | -7/Waste | Identified exit to Factory 4223 | -7/Waste | Entered Factory 4234 | -7/Factory | Lost 5 parts (1p1n1u2w) 4390 | -7/Factory | Core integrity fell below 20% 4395 | -7/Factory | Destroyed by S-27 Virus with Autogun Last Messages --------------- 04199_ Med. Storage Unit crushed. 04203_ Imp. Carbon-fiber Leg destroyed. 04217_ EXIT=FOUND 04223_ EXIT=IDENTIFIED: FACTORY LOCATION=FACTORY GOAL=ESCAPE You have entered the same map type at the same depth as a previous visit, though this is a different location at that depth rather than "revisiting" the exact same area. 04224_ System corrupted: Energy discharge (-30). 04230_ Acquired Nuclear Core. 04253_ System corrupted: Energy discharge (-67). 04331_ System corrupted: Heat flow error (+127). 04358_ K-01 Serf collects debris. 04365_ System corrupted: Component data lost. 04368_ ALERT: All DSF locations entering lockdown mode. 04377_ Slammed into S-27 Virus. 04383_ Nuclear Core destroyed. 04386_ Slammed into S-27 Virus. 04395_ Destabilizing: System corrupted (+1). Map ----- +----------------------------------------------------+ | ???????????????????????##############????????????? | | ???????????????????????# #????????????? | | ???????????????????????# #????????????? | | ???????????????????????# #????????????? | | ???????????????????????# #????????????? | | ???????????????????????# #????????????? | | ???????????????????????# #????????????? | | ???????????????????????# #????????????? | | ???????????????????????# #????????????? | | ???????????????????????# #????????????? | | ???????????????????????# #????????????? | | ???????????????????????# #????????????? | | ???????????????????????# #????????????? | | ????????????####+#############+#########?????????? | | ????????????# #?##??##??? | | ????????????# ## ? #??? | | ????????????# """ """ ## #??? | | ????????????# """ """ ## """ #### | | ????????????# """ """ ## """ # | | ????????????# #####+### ## """ # | | ????????????# ???#! #^ """ """ ## # | | ???????????????????# """s# """ """ ## """ # | | ???????????????????# """ # """ """ ## """ # | | ???????????????????# """ # + """ # | | ???????????????????# s # ## + | | ???????????????????# """@# ^ ## # | | ???????????????????# """s#^ ## # | | ???????????????????# """ # "" """ #####+##### | | ???????????????????#] # ""F""" | | ???????????????????# """ # """"" | | ???????????????????# T" # | | ???????????????????# """ #? | | ???????????????????#??? #???#### | | ???????????????????????####??????####+#####+###### | | ????????????????????????????????????????????# | | ????????????????????????????????????????????# | | ????????????????????????????????????????????# | | ????????????????????????????????????????????# " | | ????????????????????????????????????????????# " | | ????????????????????????????????????????????# " | | ????????????????????????????????????????????# | | ????????????????????????????????????????????# " | | ????????????????????????????????????????????# " | | ????????????????????????????????????????????#!! " | | ????????????????????????????????????????????#! | | ????????????????????????????????????????????#! | | ????????????????????????????????????????????###### | | ?????????????????????????????????????????????????? | | ?????????????????????????????????????????????????? | | ?????????????????????????????????????????????????? | +----------------------------------------------------+ Best States ------------- Heat Dissipation 44 Energy Generation 14 Energy Capacity 265 Matter Stores 300 Matter Capacity 300 Sight Range 16 Terrain Scan Range 14 Terrain Scan Density 10 Power Shielding 33 Evasion (%) 55 Recoil Reduction 5 Item Schematics ----------------- None Robot Schematics ------------------ None Fabricated ------------ Nothing Alien Tech Used ----------------- None Achievements -------------- Quick And Dirty Challenges ------------ None Game ------ Seed SignalDrainedSegregator Manual? 0 Play Time 00:25:13 Cumulative 14.4 hours Start 2022.03.21 @ 20:54:22 End 2022.03.21 @ 21:23:31 Sessions 1 Manual Loads 0 Difficulty Rogue Special Mode None Game No. 18 Rogue 10 Adventurer 8 Explorer 0 Win Type - Total 1 Types 1/0/0/0/0/0/0/0/0 Lore% 38 Gallery% 34 Achievement% 36 Wizard Run 0 Options --------- ASCII 0 Keyboard 0 Movement Arrows Keybinds 0 Fullscreen 1 Font 18/Terminus Map View 76x50 Tactical HUD 1 Map Filters NONE Filters NONE Steam 1 RUN: 02f2a159-3b82-45f1-aeaf-2f773642851b